bitfinex/quotes_ETHUSD_20250504
["timestamp","ask_amount","ask_price","bid_price","bid_amount"]
[1746386368381,0.16933303,1829.7,1829.6,12.97992968]
[1746386368579,6.14,1829.9,1829.6,20.28994948]
[1746386368767,0.16933303,1829.7,1829.6,12.97992968]
[1746386369085,6.14,1829.9,1829.6,12.97992968]
[1746386369272,0.16933303,1829.7,1829.6,12.97992968]
[1746386369472,6.14,1829.9,1829.6,18.44536766]
[1746386369672,0.16933303,1829.7,1829.6,12.97992825]
[1746386369857,6.14,1829.9,1829.6,20.28994644]
[1746386370057,0.16945752,1829.7,1829.6,12.97992825]
[1746386370257,6.14,1829.9,1829.6,18.44536761]
[1746386370486,6.14,1829.9,1829.6,12.97992825]
[1746386370487,0.16976452,1829.7,1829.6,12.97992825]
[1746386370695,6.14,1829.9,1829.6,12.97992825]
[1746386370898,0.16976452,1829.7,1829.6,12.97992825]
[1746386371067,6.14,1829.9,1829.6,20.28998994]
[1746386371396,6.14,1829.9,1829.6,18.44541192]
[1746386371601,0.16976452,1829.8,1829.6,12.97992825]
[1746386372094,6.14,1829.9,1829.6,12.97992825]
[1746386372295,0.16976452,1829.7,1829.6,12.97992825]
[1746386372494,6.14,1829.9,1829.6,10.78013936]
[1746386373001,0.16976452,1829.8,1829.6,10.78013936]
[1746386373202,0.16976452,1829.8,1829.6,12.40473649]
[1746386373371,6.14,1829.9,1829.6,12.40473649]
[1746386373693,0.16976452,1829.7,1829.6,10.78013936]
[1746386373894,6.14,1829.9,1829.6,10.78013936]
[1746386374407,0.16976452,1829.8,1829.6,10.78013936]
[1746386374905,6.14,1829.9,1829.6,10.78013936]
[1746386375366,0.16976452,1829.8,1829.6,10.78013936]
[1746386375567,0.16976452,1829.8,1829.6,12.40473629]
[1746386375799,6.14,1829.9,1829.6,12.40473629]
[1746386376101,6.14,1829.9,1829.7,5.46527693]
[1746386376597,6.14,1829.9,1829.6,10.78018028]
[1746386376810,6.14,1829.9,1829.7,5.46534995]
[1746386377986,6.14,1829.9,1829.6,11.85823757]
[1746386378405,6.14,1829.9,1829.6,10.78021954]
[1746386380306,6.14,1829.9,1829.6,9.95651954]
[1746386380605,0.16984127,1829.8,1829.6,4.491]
[1746386380808,11.60490881,1829.9,1829.6,4.491]
[1746386381011,0.16984127,1829.7,1829.6,4.491]
[1746386381311,11.60490881,1829.9,1829.6,4.491]
[1746386381512,0.16984127,1829.7,1829.6,4.491]
[1746386381699,11.60490881,1829.9,1829.6,4.491]
[1746386382309,0.16915044,1829.8,1829.6,4.491]
[1746386382728,11.60490881,1829.9,1829.6,4.491]
[1746386383182,0.16915044,1829.8,1829.6,4.491]
[1746386383390,11.60490881,1829.9,1829.6,4.491]
[1746386383610,0.16915044,1829.7,1829.6,4.491]
[1746386383798,11.60490881,1829.9,1829.6,4.491]
[1746386383994,0.16915044,1829.7,1829.6,4.491]
[1746386384330,6.14,1829.7,1829.6,4.491]
[1746386384630,11.77452727,1829.7,1829.4,4.493]
[1746386384833,6.14,1829.6,1829.4,9.95924897]
[1746386385173,0.16915044,1829.5,1829.4,9.95924897]
[1746386385373,6.14,1829.6,1829.4,9.95924897]
[1746386385614,0.16915044,1829.5,1829.4,9.95924897]
[1746386385807,6.14,1829.6,1829.4,9.95924897]
[1746386386111,0.16915044,1829.5,1829.4,9.95924897]
[1746386387111,0.16915044,1829.5,1829.4,11.50182975]
[1746386387409,6.14,1829.6,1829.4,11.50182975]
[1746386387774,0.16915044,1829.5,1829.4,11.50182975]
[1746386390605,6.30915044,1829.5,1829.4,11.50182975]
[1746386390826,6.30915044,1829.5,1829.4,12.25492975]
[1746386390982,6.14,1829.5,1829.4,12.25492975]
[1746386391181,6.30915044,1829.5,1829.4,14.45471864]
[1746386391384,6.30915044,1829.5,1829.4,15.00471864]
[1746386391626,6.14,1829.5,1829.4,15.00471864]
[1746386396637,6.14,1830.0,1829.8,5.46497145]
[1746386396798,6.14,1830.0,1829.8,9.95797145]
[1746386400739,6.14,1830.0,1829.8,4.493]
[1746386402731,6.904,1830.0,1829.8,4.493]
[1746386404546,12.36848819,1830.0,1829.8,4.493]
[1746386404744,14.151764,1830.0,1829.8,4.493]
[1746386405246,8.68727581,1830.0,1829.8,4.493]
[1746386405627,14.15183484,1830.0,1829.8,4.493]
[1746386406114,14.15183484,1830.0,1829.6,9.96247064]
[1746386406313,12.36855903,1830.0,1829.6,9.96247064]
[1746386407753,6.904,1830.0,1829.7,5.46534684]
[1746386408145,6.904,1830.0,1829.6,9.96251232]
[1746386408373,6.904,1830.0,1829.7,5.46537306]
[1746386410482,0.17004258,1829.9,1829.7,5.46537306]
[1746386412685,0.17004258,1829.9,1829.6,9.9625689]
[1746386414154,6.14,1829.8,1829.7,5.46537683]
[1746386414502,6.30979773,1829.8,1829.7,5.46537683]
[1746386418100,6.30979773,1829.8,1829.7,7.81432434]
[1746386418269,6.30979773,1829.8,1829.7,8.36432434]
[1746386418463,6.14,1829.8,1829.7,8.30967051]
[1746386418663,6.3005181,1829.8,1829.7,8.30967051]
[1746386419479,6.14,1829.8,1829.7,8.30967051]
[1746386420487,6.30113253,1829.8,1829.7,8.30967051]
[1746386423010,0.16113253,1829.8,1829.7,8.30967051]
[1746386423303,6.14,1830.3,1830.0,5.46426608]
[1746386423494,6.14,1830.3,1830.1,4.496]
[1746386425501,0.16113253,1830.2,1830.1,4.496]
[1746386425798,0.16113253,1830.2,1830.1,9.96018228]
[1746386426013,6.30113253,1830.2,1830.1,11.58534476]
[1746386431470,6.47776086,1830.2,1830.1,11.58534476]
[1746386438928,6.47776086,1830.2,1830.1,4.496]
[1746386439825,6.47776086,1830.2,1830.1,9.96018228]
[1746386440285,6.47776086,1830.2,1830.1,4.496]
[1746386441520,6.47776086,1830.2,1830.1,9.96018228]
[1746386444821,6.47776086,1830.2,1830.1,4.496]
[1746386445006,7.20803695,1830.2,1830.1,4.496]
[1746386445213,0.8188,1830.1,1829.9,4.492]
[1746386445589,0.34270661,1830.0,1829.9,4.492]
[1746386445797,0.34262984,1830.0,1829.9,4.492]
[1746386449332,6.48262984,1830.0,1829.9,4.492]
[1746386453440,6.4772881,1830.0,1829.9,4.492]
[1746386461749,11.94176897,1830.0,1829.9,4.492]
[1746386461953,14.56374416,1830.0,1829.9,4.492]
[1746386462118,5.46479818,1829.9,1829.6,4.493]
[1746386462531,0.33785567,1829.8,1829.6,9.95866611]
[1746386462814,0.7995,1829.8,1829.6,9.95866611]
[1746386463023,0.33785567,1829.7,1829.6,9.95866611]
[1746386463224,0.33785567,1829.7,1829.6,11.50110862]
[1746386463644,6.9395,1830.0,1829.6,11.50110862]
[1746386463846,12.40399168,1830.0,1829.6,9.95866611]
[1746386464049,0.33785567,1829.9,1829.6,9.95866611]
[1746386464238,0.7995,1829.8,1829.6,9.95866611]
[1746386464771,0.33785567,1829.7,1829.6,9.95866611]
[1746386466857,6.47785567,1829.7,1829.6,9.95866611]
[1746386467086,6.47785567,1829.7,1829.6,11.50110862]
[1746386467259,6.47785567,1829.7,1829.6,12.32100862]
[1746386467632,6.14,1829.7,1829.6,12.32100862]
[1746386467855,6.47631951,1829.7,1829.6,12.32100862]
[1746386469774,6.47631951,1829.7,1829.6,13.89197463]
[1746386476182,6.14,1829.7,1829.6,13.89197463]
[1746386477454,6.44755042,1829.7,1829.6,13.89197463]
[1746386482400,6.44755042,1829.7,1829.6,13.07207463]
[1746386482549,6.44755042,1829.7,1829.6,4.493]
[1746386484691,6.44755042,1829.7,1829.6,9.95867555]
[1746386486508,6.44755042,1829.7,1829.6,4.493]
[1746386491214,6.44755042,1829.7,1829.6,9.95867555]
[1746386499702,6.44755042,1829.7,1829.6,5.46567555]
[1746386499901,6.44755042,1829.7,1829.6,8.86420912]
[1746386500086,6.14,1829.7,1829.6,8.86420912]
[1746386500291,6.44662866,1829.7,1829.6,8.86420912]
[1746386504409,6.44662866,1829.7,1829.6,7.29324311]
[1746386505121,6.44662866,1829.7,1829.6,5.46567555]
[1746386509424,6.44662866,1829.7,1829.6,5.32891666]
[1746386514252,6.44662866,1829.7,1829.6,6.89988267]
[1746386514843,6.44662866,1829.7,1829.6,11.38688267]
[1746386520249,6.44662866,1829.7,1829.6,11.93688267]
[1746386520448,6.44662866,1829.7,1829.6,14.6329601]
[1746386520744,6.14,1829.7,1829.6,14.6329601]
[1746386521365,6.44924018,1829.7,1829.6,14.6329601]
[1746386521974,6.44924018,1829.7,1829.6,11.38688267]
[1746386522157,6.44924018,1829.7,1829.6,9.81591666]
[1746386526149,6.44924018,1829.7,1829.6,12.71418267]
[1746386526675,6.14,1829.7,1829.6,12.71418267]
[1746386527187,6.14,1830.1,1830.0,5.46448087]
[1746386527476,6.14,1830.1,1830.0,9.95048087]
[1746386527667,6.41278937,1830.1,1830.0,9.95048087]
[1746386534999,6.41278937,1830.1,1830.0,11.49199559]
[1746386535159,6.41278937,1830.1,1830.0,12.28949559]
[1746386535560,6.14,1830.1,1830.0,12.28949559]
[1746386535991,6.39219276,1830.1,1830.0,12.28949559]
[1746386537356,6.14,1830.1,1830.0,12.28949559]
[1746386538004,6.39219276,1830.1,1830.0,12.28949559]
[1746386539795,6.39219276,1830.1,1830.0,11.49199559]
[1746386542963,6.39219276,1830.1,1830.0,9.95048087]
[1746386543164,7.18009276,1830.1,1830.0,4.486]
[1746386543364,7.18009276,1830.1,1830.0,9.95048087]
[1746386543598,6.39219276,1830.1,1830.0,9.95048087]
[1746386545505,6.39219276,1830.1,1830.0,4.486]
[1746386546700,7.11020204,1830.1,1830.0,4.486]
[1746386546899,7.11020204,1830.1,1829.7,5.46521356]
[1746386546900,5.46458223,1830.0,1829.6,5.46555587]
[1746386547105,0.829,1829.9,1829.7,9.95132179]
[1746386547309,1.0821488,1829.9,1829.7,9.95132179]
[1746386551885,6.14,1829.8,1829.7,9.95132179]
[1746386552483,6.3931488,1829.8,1829.7,9.95132179]
[1746386565489,6.3931488,1829.8,1829.7,13.29899313]
[1746386565696,6.3931488,1829.8,1829.7,14.07709313]
[1746386566113,6.14,1829.8,1829.7,14.07709313]
[1746386567289,6.38773632,1829.8,1829.7,14.07709313]
[1746386567804,6.38773632,1829.8,1829.7,14.70495112]
[1746386568010,6.38773632,1829.8,1829.7,14.69960937]
[1746386570150,0.24773632,1829.8,1829.7,15.24960937]
[1746386570297,6.14,1830.4,1830.3,5.4635852]
[1746386570498,6.14,1830.6,1830.5,5.46298825]
[1746386570797,9.81001559,1830.7,1830.6,6.01268982]
[1746386571109,9.81001559,1830.7,1830.6,6.83031109]
[1746386571435,9.81001559,1830.7,1830.6,6.77568982]
[1746386571595,9.81001559,1830.7,1830.6,8.21944948]
[1746386574735,9.81001559,1830.7,1830.6,8.27407014]
[1746386575112,6.14,1830.7,1830.6,8.21944948]
[1746386575435,6.14,1831.0,1830.9,5.46179474]
[1746386575622,6.14,1831.0,1830.9,9.94979474]
[1746386577933,6.34916703,1831.0,1830.9,9.94979474]
[1746386578134,6.34916703,1831.0,1830.9,4.488]
[1746386578847,7.12686703,1831.0,1830.9,4.488]
[1746386580638,7.12686703,1831.0,1830.9,9.94979474]
[1746386581840,7.12686703,1831.0,1830.9,4.488]
[1746386582141,6.34916703,1831.0,1830.9,9.94979474]
[1746386584149,6.34916703,1831.0,1830.9,4.488]
[1746386584714,0.7874,1830.9,1830.3,0.7605]
[1746386584912,0.7874,1830.7,1830.5,5.46284565]
[1746386585423,0.22042944,1830.6,1830.5,5.46284565]
[1746386586837,0.22042944,1830.6,1830.4,9.95012174]
[1746386590034,6.14,1830.5,1830.4,9.95012174]
[1746386590234,6.14,1830.5,1830.4,11.49148153]
[1746386590534,6.35857859,1830.5,1830.4,11.49148153]
[1746386591544,6.35857859,1830.5,1830.4,9.95012174]
[1746386597225,6.35857859,1830.5,1830.4,4.487]
[1746386597556,6.35857859,1830.5,1830.1,9.96408249]
[1746386597557,12.65006684,1830.5,1830.1,9.96408249]
[1746386597763,6.9685,1830.4,1830.1,9.96412624]
[1746386598123,0.21657343,1830.3,1830.1,9.96412624]
[1746386598323,0.21657343,1830.3,1830.1,4.5]
[1746386598538,0.21657343,1830.3,1830.1,9.964113]
[1746386598739,0.21657343,1830.3,1830.1,4.5]
[1746386599363,0.21657343,1830.3,1830.1,9.96412551]
[1746386601329,0.21657343,1830.3,1830.2,5.46388372]
[1746386601768,6.35657343,1830.3,1830.2,5.46388372]
[1746386606377,6.35657343,1830.3,1830.2,7.66280225]
[1746386606542,6.14,1830.3,1830.2,7.66280225]
[1746386607687,6.14,1830.7,1830.5,5.46277645]
[1746386608044,0.19657342,1830.6,1830.5,5.46277645]
[1746386613457,6.33657342,1830.6,1830.5,5.46277645]
[1746386621687,6.33657342,1830.6,1830.4,9.96314923]
[1746386621688,6.33657342,1830.6,1830.4,15.42617151]
[1746386621883,6.33657342,1830.6,1830.4,9.96306943]
[1746386622084,6.33657342,1830.6,1830.4,9.96306105]
[1746386622313,6.33657342,1830.6,1830.5,5.46298825]
[1746386626465,6.33657342,1830.6,1830.5,7.00559318]
[1746386629511,6.33657342,1830.6,1830.5,7.76829318]
[1746386630610,6.33657342,1830.6,1830.5,8.17962998]
[1746386636580,6.14,1830.6,1830.5,8.17962998]
[1746386637009,0.19413054,1830.6,1830.5,8.17962998]
[1746386637194,0.19413054,1830.6,1830.5,8.23425373]
[1746386637405,6.14,1830.9,1830.8,5.46209307]
[1746386639517,6.14,1830.9,1830.8,10.78709307]
[1746386639705,6.14,1831.1,1831.0,5.46149645]
[1746386642803,6.14,1831.3,1831.1,5.46091359]
[1746386644222,6.14,1831.3,1831.2,5.46089995]
[1746386644546,6.14,1831.3,1831.1,5.46104618]
[1746386648239,6.14,1831.3,1831.2,5.46089995]
[1746386648595,6.14,1831.3,1831.2,6.55309456]
[1746386648798,6.14,1831.5,1831.3,5.46054574]
[1746386650533,0.2034609,1831.4,1831.3,5.46054574]
[1746386652038,0.2034609,1831.4,1831.2,11.04490624]
[1746386652400,0.2034609,1831.4,1831.3,5.46060175]
[1746386653114,0.2034609,1831.4,1831.2,11.04490624]
[1746386654022,0.2034609,1831.4,1831.2,16.50560181]
[1746386654221,0.2034609,1831.4,1831.2,11.04489018]
[1746386654413,0.2034609,1831.4,1831.3,1.10448902]
[1746386654617,6.3434609,1831.4,1831.3,1.10448902]
[1746386658923,6.3434609,1831.4,1831.3,6.56509077]
[1746386663038,6.3434609,1831.4,1831.3,11.05609077]
[1746386665143,6.3434609,1831.4,1831.3,11.84189077]
[1746386665345,6.3434609,1831.4,1831.3,12.39189077]
[1746386674065,6.14,1831.4,1831.3,12.39189077]
[1746386675067,6.14,1831.9,1831.7,5.45938042]
[1746386675274,6.14,1831.9,1831.8,4.49]
[1746386679174,6.9468,1831.9,1831.8,4.49]
[1746386680770,7.16120274,1831.9,1831.8,4.49]
[1746386691592,12.62001599,1831.9,1831.8,4.49]
[1746386693187,0.7986,1831.7,1831.5,4.487]
[1746386693707,0.21309323,1831.6,1831.5,9.94700419]
[1746386696101,0.21309323,1831.6,1831.5,4.487]
[1746386698498,6.35309323,1831.6,1831.5,4.487]
[1746386700601,6.35309323,1831.6,1831.5,9.94700546]
[1746386700798,6.35309323,1831.6,1831.5,11.56664386]
[1746386701807,6.35309323,1831.6,1831.5,6.1066384]
[1746386701989,6.35309323,1831.6,1831.5,4.487]
[1746386706818,6.35309323,1831.6,1831.3,5.46041075]
[1746386706980,6.14,1831.5,1831.4,4.488]
[1746386707178,6.34985084,1831.5,1831.4,4.488]
[1746386707693,6.34985084,1831.5,1831.4,9.94830359]
[1746386711398,6.34985084,1831.5,1831.4,4.488]
[1746386712125,6.34985084,1831.5,1831.4,9.94830359]
[1746386716832,6.34985084,1831.5,1831.4,11.48916931]
[1746386717018,6.34985084,1831.5,1831.4,12.25416931]
[1746386725402,6.14,1831.5,1831.4,12.25416931]
[1746386725718,6.34525756,1831.5,1831.4,13.82225003]
[1746386727004,6.34525756,1831.5,1831.4,17.37225003]
[1746386727202,6.14,1831.5,1831.4,17.37225003]
[1746386728035,6.14,1831.9,1831.8,5.45911125]
[1746386728198,6.14,1831.9,1831.8,9.95311125]
[1746386732223,6.14,1831.9,1831.8,11.49436207]
[1746386733851,6.14,1831.9,1831.8,12.32286207]
[1746386737027,0.8201,1832.3,1832.0,5.45829014]
[1746386737209,6.14,1832.2,1832.0,5.45825803]
[1746386739148,6.14,1832.2,1832.1,5.45821734]
[1746386739329,6.14,1832.2,1832.0,5.45837534]
[1746386739530,6.14,1832.2,1832.0,6.55008155]
[1746386740753,0.20972545,1832.1,1832.0,6.55008155]
[1746386740930,6.14,1832.2,1832.0,6.55008155]
[1746386741132,0.21034156,1832.1,1832.0,6.55008155]
[1746386741442,6.14,1832.2,1832.0,1.09170621]
[1746386741641,0.21034156,1832.1,1832.0,1.09170621]
[1746386741846,0.8165,1832.1,1831.8,11.4941928]
[1746386742032,0.21034156,1832.0,1831.8,11.4941928]
[1746386742544,6.14,1831.9,1831.8,11.4941928]
[1746386743057,6.35034156,1831.9,1831.8,11.4941928]
[1746386743545,6.35034156,1831.9,1831.8,12.8249928]
[1746386745456,6.35034156,1831.9,1831.8,12.0441928]
[1746386748874,6.35034156,1831.9,1831.8,12.8102928]
[1746386750277,6.35034156,1831.9,1831.8,12.0441928]
[1746386753180,7.10794156,1831.9,1831.6,4.485]
[1746386753348,12.56694837,1831.9,1831.6,4.485]
[1746386754255,6.14,1831.8,1831.6,4.485]
[1746386754459,6.35234392,1831.8,1831.6,9.94470329]
[1746386755073,6.35234392,1831.8,1831.7,5.45940929]
[1746386755255,6.35234392,1831.8,1831.7,6.99982055]
[1746386760172,6.35234392,1831.8,1831.7,5.45940929]
[1746386760374,6.35234392,1831.8,1831.6,9.94451818]
[1746386765713,6.35234392,1831.8,1831.6,9.94448745]
[1746386765993,6.35234392,1831.8,1831.7,5.45940929]
[1746386772687,6.35234392,1831.8,1831.6,9.94455586]
[1746386773081,6.35234392,1831.8,1831.7,5.45940929]
[1746386773480,6.35234392,1831.8,1831.7,6.9998058]
[1746386773713,6.35234392,1831.8,1831.7,8.3480058]
[1746386774572,6.14,1831.8,1831.7,8.3480058]
[1746386774775,6.35003353,1831.8,1831.7,8.3480058]
[1746386775506,6.35003353,1831.8,1831.7,7.5498058]
[1746386777920,6.35003353,1831.8,1831.7,7.95622347]
[1746386784609,6.35003353,1831.8,1831.7,8.78202347]
[1746386784905,6.14,1831.8,1831.7,8.83661144]
[1746386785087,6.14,1831.8,1831.7,11.78202347]
[1746386785285,6.35111178,1831.8,1831.7,11.78202347]
[1746386788313,6.14,1831.8,1831.7,11.78202347]
[1746386789423,6.14,1832.2,1831.9,5.45851965]
[1746386789638,6.14,1832.2,1832.0,9.95049129]
[1746386794726,6.14,1832.2,1832.0,4.492]
[1746386796233,6.14,1832.2,1832.0,9.9504131]
[1746386796692,6.14,1832.2,1832.0,15.4088219]
[1746386796898,6.14,1832.2,1832.0,9.9504088]
[1746386797497,6.14,1832.2,1832.0,15.40872051]
[1746386797711,6.14,1832.2,1832.0,9.95031171]
[1746386798020,6.14,1832.2,1832.1,5.45821734]
[1746386800433,6.35203595,1832.2,1832.0,9.95047492]
[1746386800628,6.35203595,1832.2,1832.0,11.02736908]
[1746386801128,6.35203595,1832.2,1832.0,11.02736603]
[1746386801326,6.14,1832.1,1832.0,11.02736603]
[1746386801827,6.35203595,1832.1,1832.0,11.02736603]
[1746386804245,6.35203595,1832.1,1832.0,16.89474004]
[1746386804840,6.35319103,1832.1,1832.0,16.89474004]
[1746386805752,6.35319103,1832.1,1832.0,15.32746603]
[1746386808950,6.14,1832.1,1832.0,15.32746603]
[1746386810030,6.14,1832.4,1832.3,5.45762156]
[1746386810356,6.3554239,1832.4,1832.3,5.45762156]
[1746386815664,6.3554239,1832.4,1832.2,5.87251063]
[1746386815956,6.14,1832.3,1832.2,7.00547942]
[1746386816254,6.35603981,1832.3,1832.2,7.00547942]
[1746386820048,6.35603981,1832.3,1832.2,7.82057942]
[1746386820236,6.35603981,1832.3,1832.2,7.00547942]
[1746386823063,6.35603981,1832.3,1832.1,5.45810406]
[1746386823245,6.35603981,1832.3,1832.1,9.94210406]
[1746386823246,7.12103981,1832.3,1832.1,9.94210406]
[1746386824075,6.905,1832.3,1832.1,9.94210406]
[1746386824428,0.21642472,1832.2,1832.1,9.94210406]
[1746386827666,6.35642472,1832.2,1832.1,9.94210406]
[1746386829467,6.35642472,1832.2,1832.1,11.55478723]
[1746386829767,6.35642472,1832.2,1832.1,12.33518723]
[1746386833370,6.35642472,1832.2,1832.1,11.55478723]
[1746386833534,6.35642472,1832.2,1832.1,9.94210406]
[1746386833958,6.14,1832.2,1832.1,9.94210406]
[1746386834373,6.35642472,1832.2,1832.1,9.94210406]
[1746386848782,7.18092472,1832.2,1832.1,4.484]
[1746386849080,7.18092472,1832.2,1832.1,9.94221734]
[1746386851680,7.18092472,1832.2,1832.1,4.484]
[1746386857221,7.18092472,1832.2,1832.0,5.45827296]
[1746386857424,7.18092472,1832.2,1832.0,9.94227296]
[1746386859831,6.35642472,1832.2,1832.1,5.45821734]
[1746386859998,6.35642472,1832.2,1832.0,10.73713079]
[1746386861530,6.35642472,1832.2,1832.1,5.45821734]
[1746386862420,6.35642472,1832.2,1832.0,10.73713872]
[1746386862947,6.14,1832.1,1832.0,9.94233872]
[1746386863445,6.35557781,1832.1,1832.0,9.94233872]
[1746386866843,6.35557781,1832.1,1832.0,4.484]
[1746386874285,6.35557781,1832.1,1832.0,9.94251528]
[1746386876869,6.35557781,1832.1,1832.0,4.484]
[1746386877075,6.35557781,1832.1,1832.0,9.94251528]
[1746386879780,6.35557781,1832.1,1832.0,4.484]
[1746386880590,6.35557781,1832.1,1832.0,9.94251528]
[1746386880766,6.35557781,1832.1,1832.0,4.484]
[1746386881401,7.07100559,1832.1,1832.0,4.484]
[1746386881755,0.8166,1832.0,1831.9,4.483]
[1746386881955,6.9566,1832.0,1831.9,4.483]
[1746386882186,7.17194689,1832.0,1831.9,4.483]
[1746386885092,6.35534689,1832.0,1831.9,4.483]
[1746386886576,7.17194689,1832.0,1831.9,4.483]
[1746386887795,8.50650966,1832.0,1831.9,4.483]
[1746386893230,7.17194689,1832.0,1831.9,4.483]
[1746386895226,6.35534689,1832.0,1831.9,4.483]
[1746386904854,6.35534689,1832.0,1831.9,9.94181325]
[1746386905855,6.35534689,1832.0,1831.9,4.483]
[1746386906034,6.35534689,1832.0,1831.9,5.45881325]
[1746386920402,6.35534689,1832.0,1831.9,7.82976383]
[1746386920574,6.35534689,1832.0,1831.9,12.31276383]
[1746386927271,6.35534689,1832.0,1831.9,11.55716383]
[1746386928007,6.35534689,1832.0,1831.9,4.483]
[1746386928309,7.11214689,1832.0,1831.9,4.483]
[1746386934920,7.11214689,1832.0,1831.7,9.94129673]
[1746386937687,7.104482,1832.0,1831.7,9.94129673]
[1746386939021,6.13233511,1831.9,1831.7,9.94129673]
[1746386939221,0.20264122,1831.8,1831.7,9.94129673]
[1746386939420,0.20264122,1831.8,1831.7,10.97627239]
[1746386942539,0.20264122,1831.8,1831.7,4.482]
[1746386945040,6.33497633,1831.8,1831.7,4.482]
[1746386947459,7.08727633,1831.8,1831.7,4.482]
[1746386951144,6.33497633,1831.8,1831.7,4.482]
[1746386963183,6.33497633,1831.8,1831.7,9.94140929]
[1746386963686,6.33497633,1831.8,1831.7,12.26810223]
[1746386964750,6.33497633,1831.8,1831.7,10.72800929]
[1746386965581,6.33497633,1831.8,1831.7,5.2686]
[1746386966484,6.33497633,1831.8,1831.7,10.72800929]
[1746386966779,6.33497633,1831.8,1831.7,6.24600929]
[1746386967767,6.33497633,1831.8,1831.7,0.7866]
[1746386968051,6.33497633,1831.8,1831.7,6.87061687]
[1746386968375,6.13233511,1831.8,1831.7,6.87061687]
[1746386968774,6.33003769,1831.8,1831.7,6.87061687]
[1746386969882,6.33003769,1831.8,1831.7,11.35161687]
[1746386990964,6.33003769,1831.8,1831.7,10.56501687]
[1746386991122,6.33003769,1831.8,1831.7,9.94040929]
[1746386994061,6.33003769,1831.8,1831.7,4.481]
[1746386997652,6.33003769,1831.8,1831.6,9.93853553]
[1746386999252,6.33003769,1831.8,1831.6,15.39803672]
[1746386999748,6.33003769,1831.8,1831.6,9.93849347]
[1746386999951,6.33003769,1831.8,1831.7,5.45940929]
[1746387001740,6.33003769,1831.8,1831.7,9.93840929]
[1746387002559,6.33003769,1831.8,1831.7,4.479]
[1746387002720,0.8025,1831.7,1831.4,9.93915505]
[1746387003055,6.13233511,1831.6,1831.4,4.479]
[1746387003220,6.13233511,1831.6,1831.4,9.93927465]
[1746387003751,6.13233511,1831.6,1831.5,5.46000546]
[1746387004351,6.13233511,1831.6,1831.5,6.99993347]
[1746387004729,6.13233511,1831.6,1831.5,12.11696538]
[1746387004938,6.13233511,1831.6,1831.5,12.93816538]
[1746387017072,0.19770258,1831.8,1831.7,6.83830929]
[1746387017241,0.19770258,1831.8,1831.7,11.4053412]
[1746387017438,6.14,1832.0,1831.9,5.45881325]
[1746387017654,6.14,1832.3,1832.2,5.45791944]
[1746387018154,0.7953,1832.2,1832.1,5.4580599]
[1746387018971,0.7953,1832.2,1832.0,5.45827865]
[1746387019171,0.7953,1832.1,1831.9,9.9376674]
[1746387019344,0.7953,1832.1,1831.9,9.93763305]
[1746387019671,0.14184731,1832.0,1831.9,9.93763305]
[1746387020047,0.14184731,1832.0,1831.9,4.479]
[1746387020254,0.94564731,1832.0,1831.9,4.479]
[1746387021146,7.08564731,1832.0,1831.9,4.479]
[1746387021367,7.79421204,1832.0,1831.9,4.479]
[1746387027090,7.79421204,1832.0,1831.8,5.45910323]
[1746387027295,7.08564731,1832.0,1831.8,5.45910323]
[1746387027595,7.08564731,1832.0,1831.7,9.93722241]
[1746387028125,7.08564731,1832.0,1831.7,4.478]
[1746387028277,0.7724,1831.9,1831.7,4.478]
[1746387028615,0.14161598,1831.8,1831.7,4.478]
[1746387033018,6.28161598,1831.8,1831.7,4.478]
[1746387035283,6.98701758,1831.8,1831.7,4.478]
[1746387035632,7.75111758,1831.8,1831.7,4.478]
[1746387036334,7.75111758,1831.8,1831.4,5.46016094]
[1746387036335,0.7641,1831.7,1831.4,4.478]
[1746387036635,6.9041,1831.7,1831.4,9.9382821]
[1746387036838,0.14161598,1831.6,1831.4,9.9382821]
[1746387038254,0.14161598,1831.6,1831.4,4.478]
[1746387041704,6.9322,1831.5,1831.4,4.478]
[1746387041907,7.07050052,1831.5,1831.4,4.478]
[1746387042106,6.27830052,1831.5,1831.4,9.93830359]
[1746387048162,6.27830052,1831.5,1831.4,11.4781709]
[1746387048367,6.27830052,1831.5,1831.4,12.2968709]
[1746387048666,6.14,1831.5,1831.4,12.2968709]
[1746387048825,6.27830052,1831.5,1831.4,12.2968709]
[1746387049927,6.27830052,1831.5,1831.4,17.49142444]
[1746387050269,6.14,1831.5,1831.4,18.04142444]
[1746387050563,6.14,1832.1,1832.0,5.45834364]
[1746387050963,6.27517147,1832.1,1832.0,5.45834364]
[1746387052331,6.27517147,1832.1,1832.0,6.27704364]
[1746387055653,6.27517147,1832.1,1832.0,5.45834364]
[1746387058455,12.36096067,1832.1,1831.9,4.478]
[1746387058656,6.23821528,1832.0,1831.9,4.478]
[1746387058967,6.37562264,1832.0,1831.9,4.478]
[1746387061361,14.71031018,1832.0,1831.6,4.477]
[1746387061567,13.07004589,1831.9,1831.6,4.477]
[1746387062057,0.13733037,1831.8,1831.6,4.477]
[1746387063472,6.23910929,1831.7,1831.6,4.477]
[1746387063793,6.3755144,1831.7,1831.6,4.477]
[1746387064152,0.91610511,1831.7,1831.6,4.477]
[1746387064969,0.13640511,1831.7,1831.6,4.477]
[1746387065168,6.27640511,1831.7,1831.6,4.477]
[1746387076079,6.27640511,1831.7,1831.5,5.45999205]
[1746387076617,6.27640511,1831.7,1831.6,5.45970735]
[1746387077119,6.27640511,1831.7,1831.6,6.28200735]
[1746387077290,6.14,1831.7,1831.6,6.28200735]
[1746387077491,6.26335913,1831.7,1831.6,6.28200735]
[1746387080395,6.26335913,1831.7,1831.6,9.28200735]
[1746387080602,6.26335913,1831.7,1831.6,11.08326557]
[1746387081903,6.14,1831.7,1831.6,11.08326557]
[1746387082828,6.14,1832.1,1832.0,5.45851528]
[1746387083126,0.11212697,1832.1,1832.0,5.45851528]
[1746387083432,6.14,1832.3,1832.0,5.45851528]
[1746387083629,0.11212697,1832.1,1832.0,5.45851528]
[1746387083805,6.14,1832.3,1832.0,5.45851528]
[1746387084005,0.11405613,1832.1,1832.0,5.45851528]
[1746387084200,6.14,1832.3,1832.0,5.45851528]
[1746387084525,11.59766937,1832.3,1831.9,10.75750965]
[1746387084731,0.11405613,1832.2,1831.9,10.75750965]
[1746387086530,0.11405613,1832.2,1831.9,9.93570965]
[1746387088026,0.11405613,1832.2,1832.0,5.45827211]